[Event "Championnat d'Europe de Blitz"]
[Date "2024.12.09"]
[White "Saric, Ante"]
[Black "Kilic, Eray"]
[WhiteElo "2482"]
[BlackElo "2459"]
[Round "11.18"]
[Result "0-1"]
[TimeControl "180+2"]

1. Nf3 {[%emt 00:00:22] [%clk 00:03:03]} d5 {[%emt 00:00:03] [%clk 00:03:01]} 2.
e3 {[%emt 00:00:01] [%clk 00:03:05]} Nf6 {[%emt 00:00:10] [%clk 00:02:53]} 3. c4
{[%emt 00:00:01] [%clk 00:03:06]} c6 {[%emt 00:00:07] [%clk 00:02:47]} 4. Nc3
{[%emt 00:00:02] [%clk 00:03:06]} g6 {[%clk 00:02:48]} 5. d4 {[%emt 00:00:03]
[%clk 00:03:06]} Bg7 {[%clk 00:02:49]} 6. Be2 {[%emt 00:00:01] [%clk 00:03:07]}
O-O {[%emt 00:00:02] [%clk 00:02:48]} 7. O-O {[%clk 00:03:08]} Nbd7 {[%emt
00:00:03] [%clk 00:02:48]} 8. b3 {[%emt 00:00:09] [%clk 00:03:01]} Ne4 {[%emt
00:00:15] [%clk 00:02:35]} 9. Bb2 {[%emt 00:00:03] [%clk 00:03:00]} Ndf6 {[%emt
00:00:03] [%clk 00:02:33]} 10. Ne5 {[%emt 00:00:25] [%clk 00:02:38]} Nxc3 {[%emt
00:00:02] [%clk 00:02:33]} 11. Bxc3 {[%emt 00:00:01] [%clk 00:02:39]} Ne4 {[%clk
00:02:34]} 12. Bb2 {[%emt 00:00:02] [%clk 00:02:40]} Be6 {[%emt 00:00:06] [%clk
00:02:29]} 13. Rc1 {[%emt 00:00:06] [%clk 00:02:36]} Qa5 {[%emt 00:00:09] [%clk
00:02:22]} 14. a3 {[%emt 00:00:02] [%clk 00:02:36]} Qd2 {[%emt 00:00:13] [%clk
00:02:11]} 15. Rc2 {[%emt 00:00:31] [%clk 00:02:07]} Qxd1 {[%emt 00:00:01] [%clk
00:02:11]} 16. Rxd1 {[%emt 00:00:01] [%clk 00:02:09]} Bxe5 {[%emt 00:00:02]
[%clk 00:02:12]} 17. dxe5 {[%emt 00:00:02] [%clk 00:02:09]} dxc4 {[%emt
00:00:01] [%clk 00:02:13]} 18. Bxc4 {[%emt 00:00:16] [%clk 00:01:55]} Rfd8
{[%clk 00:02:14]} 19. Rd4 {[%emt 00:00:38] [%clk 00:01:19]} Bxc4 {[%emt
00:00:14] [%clk 00:02:01]} 20. bxc4 {[%emt 00:00:12] [%clk 00:01:10]} c5 {[%emt
00:00:01] [%clk 00:02:02]} 21. Rd5 {[%emt 00:00:11] [%clk 00:01:00]} e6 {[%clk
00:02:03]} 22. Rxd8+ {[%emt 00:00:01] [%clk 00:01:02]} Rxd8 {[%clk 00:02:04]}
23. h4 {[%clk 00:01:03]} Rd1+ {[%emt 00:00:05] [%clk 00:02:01]} 24. Kh2 {[%emt
00:00:01] [%clk 00:01:04]} Rd2 {[%clk 00:02:02]} 25. Rxd2 {[%emt 00:00:11] [%clk
00:00:55]} Nxd2 {[%emt 00:00:01] [%clk 00:02:03]} 26. Bc3 {[%emt 00:00:07] [%clk
00:00:50]} Nxc4 {[%emt 00:00:02] [%clk 00:02:02]} 27. a4 {[%clk 00:00:52]} b6
{[%emt 00:00:07] [%clk 00:01:57]} 28. Kg3 {[%clk 00:00:53]} a6 {[%emt 00:00:05]
[%clk 00:01:55]} 29. Kf3 {[%clk 00:00:54]} b5 {[%emt 00:00:01] [%clk 00:01:56]}
30. axb5 {[%clk 00:00:55]} axb5 {[%clk 00:01:57]} 31. Ke4 {[%emt 00:00:01] [%clk
00:00:57]} b4 {[%emt 00:00:02] [%clk 00:01:56]} 32. Ba1 {[%emt 00:00:10] [%clk
00:00:49]} b3 {[%emt 00:00:03] [%clk 00:01:55]} 33. Kd3 {[%emt 00:00:01] [%clk
00:00:50]} b2 {[%emt 00:00:02] [%clk 00:01:55]} 34. Bxb2 {[%clk 00:00:52]} Nxb2+
{[%clk 00:01:57]} 35. Kc3 {[%clk 00:00:53]} Nd1+ {[%clk 00:01:57]}

[Site "Europe Echecs"]

[Event "Championnat d'Europe de Blitz"]
[Date "2024.12.09"]
[White "Hamitevici, Vladimir"]
[Black "Dvirnyy, Danyyil"]
[WhiteElo "2423"]
[BlackElo "2491"]
[Round "11.19"]
[Result "0-1"]
[TimeControl "180+2"]

1. Nf3 {[%emt 00:00:02] [%clk 00:03:02]} d5 {[%emt 00:00:02] [%clk 00:03:02]} 2.
c4 {[%emt 00:00:03] [%clk 00:03:02]} c6 {[%emt 00:00:04] [%clk 00:03:00]} 3. Qa4
{[%emt 00:00:09] [%clk 00:02:54]} dxc4 {[%emt 00:00:21] [%clk 00:02:42]} 4. Qxc4
{[%emt 00:00:01] [%clk 00:02:55]} b5 {[%emt 00:00:03] [%clk 00:02:42]} 5. Qc2
{[%clk 00:02:56]} Bb7 {[%emt 00:00:01] [%clk 00:02:42]} 6. d4 {[%emt 00:00:04]
[%clk 00:02:54]} Nd7 {[%emt 00:00:04] [%clk 00:02:40]} 7. e4 {[%emt 00:00:09]
[%clk 00:02:47]} e6 {[%emt 00:00:02] [%clk 00:02:40]} 8. Bd3 {[%emt 00:00:12]
[%clk 00:02:36]} Ngf6 {[%emt 00:00:15] [%clk 00:02:27]} 9. O-O {[%emt 00:00:06]
[%clk 00:02:32]} Rc8 {[%emt 00:00:05] [%clk 00:02:24]} 10. Bg5 {[%emt 00:00:05]
[%clk 00:02:29]} Be7 {[%emt 00:00:05] [%clk 00:02:22]} 11. Nbd2 {[%emt 00:00:21]
[%clk 00:02:09]} a6 {[%emt 00:00:14] [%clk 00:02:11]} 12. e5 {[%emt 00:00:06]
[%clk 00:02:05]} Nd5 {[%emt 00:00:10] [%clk 00:02:02]} 13. Ne4 {[%emt 00:00:18]
[%clk 00:01:50]} f6 {[%emt 00:00:14] [%clk 00:01:51]} 14. exf6 {[%emt 00:00:06]
[%clk 00:01:46]} gxf6 {[%emt 00:00:02] [%clk 00:01:52]} 15. Bh6 {[%emt 00:00:05]
[%clk 00:01:42]} c5 {[%emt 00:00:10] [%clk 00:01:44]} 16. Neg5 {[%emt 00:00:15]
[%clk 00:01:29]} Qb6 {[%emt 00:00:22] [%clk 00:01:23]} 17. Bxh7 {[%emt 00:00:16]
[%clk 00:01:16]} fxg5 {[%emt 00:00:10] [%clk 00:01:15]} 18. Bg7 {[%emt 00:00:27]
[%clk 00:00:51]} g4 {[%emt 00:00:34] [%clk 00:00:43]} 19. Qg6+ {[%emt 00:00:14]
[%clk 00:00:37]} Kd8 {[%clk 00:00:45]} 20. Ne5 {[%emt 00:00:14] [%clk 00:00:27]}
Nxe5 {[%emt 00:00:05] [%clk 00:00:42]} 21. Bxe5 {[%emt 00:00:05] [%clk
00:00:23]} Rf8 {[%emt 00:00:10] [%clk 00:00:35]} 22. Qxg4 {[%emt 00:00:04] [%clk
00:00:21]} c4 {[%emt 00:00:11] [%clk 00:00:27]} 23. Rae1 {[%emt 00:00:02] [%clk
00:00:20]} Kd7 {[%emt 00:00:07] [%clk 00:00:22]} 24. Bg7 {[%emt 00:00:10] [%clk
00:00:12]} Rf4 {[%emt 00:00:02] [%clk 00:00:22]} 25. Qg6 {[%emt 00:00:03] [%clk
00:00:11]} Qc6 {[%emt 00:00:11] [%clk 00:00:13]} 26. Be5 {[%emt 00:00:06] [%clk
00:00:06]} Rf5 {[%emt 00:00:02] [%clk 00:00:14]} 27. Qg4 {[%emt 00:00:04] [%clk
00:00:05]} Rg5 {[%emt 00:00:01] [%clk 00:00:14]} 28. Qh3 {[%emt 00:00:02] [%clk
00:00:04]} Nf4 {[%emt 00:00:03] [%clk 00:00:15]} 0-1

[Site "Europe Echecs"]

[Event "Championnat d'Europe de Blitz"]
[Date "2024.12.09"]
[White "Saraci, Nderim"]
[Black "Papasimakopoulos, Alexandros"]
[WhiteElo "2431"]
[BlackElo "2379"]
[Round "11.20"]
[Result "0-1"]
[TimeControl "180+2"]

1. d4 {[%emt 00:15:49] [%clk 00:03:02]} d5 {[%clk 00:03:04]} 2. Nf3 {[%emt
00:00:02] [%clk 00:03:02]} e6 {[%emt 00:00:02] [%clk 00:03:04]} 3. Bf4 {[%emt
00:00:03] [%clk 00:03:01]} Bd6 {[%emt 00:00:02] [%clk 00:03:04]} 4. Bg3 {[%emt
00:00:04] [%clk 00:02:59]} Ne7 {[%emt 00:00:03] [%clk 00:03:04]} 5. c4 {[%emt
00:00:04] [%clk 00:02:57]} Nf5 {[%emt 00:00:09] [%clk 00:02:56]} 6. Nc3 {[%emt
00:00:07] [%clk 00:02:52]} c6 {[%emt 00:00:07] [%clk 00:02:52]} 7. e3 {[%emt
00:00:11] [%clk 00:02:43]} Nxg3 {[%emt 00:00:07] [%clk 00:02:47]} 8. hxg3 {[%emt
00:00:01] [%clk 00:02:43]} Nd7 {[%emt 00:00:06] [%clk 00:02:44]} 9. Qc2 {[%emt
00:00:02] [%clk 00:02:42]} h6 {[%emt 00:00:07] [%clk 00:02:39]} 10. g4 {[%emt
00:00:10] [%clk 00:02:35]} Be7 {[%emt 00:00:19] [%clk 00:02:21]} 11. Bd3 {[%emt
00:00:07] [%clk 00:02:30]} dxc4 {[%emt 00:00:03] [%clk 00:02:21]} 12. Bxc4
{[%emt 00:00:02] [%clk 00:02:29]} b5 {[%emt 00:00:01] [%clk 00:02:22]} 13. Bd3
{[%emt 00:00:02] [%clk 00:02:29]} Bb7 {[%emt 00:00:01] [%clk 00:02:23]} 14. Ne4
{[%emt 00:00:34] [%clk 00:01:57]} a6 {[%emt 00:00:14] [%clk 00:02:12]} 15. g5
{[%emt 00:00:11] [%clk 00:01:47]} Rc8 {[%emt 00:00:07] [%clk 00:02:07]} 16. gxh6
{[%emt 00:00:03] [%clk 00:01:46]} gxh6 {[%emt 00:00:14] [%clk 00:01:55]} 17. Ne5
{[%emt 00:00:19] [%clk 00:01:29]} Nxe5 {[%emt 00:00:16] [%clk 00:01:42]} 18.
dxe5 {[%emt 00:00:01] [%clk 00:01:29]} c5 {[%emt 00:00:05] [%clk 00:01:39]} 19.
O-O-O {[%emt 00:00:53] [%clk 00:00:38]} Qa5 {[%emt 00:00:01] [%clk 00:01:40]}
20. Kb1 {[%emt 00:00:02] [%clk 00:00:38]} Bd5 {[%emt 00:00:17] [%clk 00:01:25]}
21. Nc3 {[%emt 00:00:02] [%clk 00:00:39]} Bxg2 {[%emt 00:00:07] [%clk 00:01:20]}
22. Rhg1 {[%emt 00:00:02] [%clk 00:00:39]} Bf3 {[%emt 00:00:02] [%clk 00:01:20]}
23. Be2 {[%emt 00:00:13] [%clk 00:00:27]} Bxe2 {[%emt 00:00:04] [%clk 00:01:19]}
24. Qxe2 {[%emt 00:00:04] [%clk 00:00:25]} c4 {[%emt 00:00:25] [%clk 00:00:56]}
25. Ne4 {[%emt 00:00:01] [%clk 00:00:25]} b4 {[%emt 00:00:06] [%clk 00:00:52]}
26. Rd4 {[%emt 00:00:12] [%clk 00:00:15]} c3 {[%emt 00:00:05] [%clk 00:00:49]}
27. Rc1 {[%emt 00:00:06] [%clk 00:00:10]} Qxe5 {[%emt 00:00:16] [%clk 00:00:36]}
28. Qxa6 {[%clk 00:00:11]} O-O {[%emt 00:00:05] [%clk 00:00:33]} 29. Qd3 {[%emt
00:00:04] [%clk 00:00:08]} cxb2 {[%emt 00:00:05] [%clk 00:00:31]} 30. Rg1+
{[%emt 00:00:01] [%clk 00:00:09]} Kh8 {[%emt 00:00:02] [%clk 00:00:31]} 31. Rh1
{[%emt 00:00:04] [%clk 00:00:07]} Rc1+ {[%emt 00:00:02] [%clk 00:00:31]} 32.
Rxc1 {[%clk 00:00:08]} bxc1=Q+ {[%emt 00:00:04]} 33. Kxc1 {[%clk 00:00:09]} Rc8+
{[%emt 00:00:06] [%clk 00:00:26]} 34. Kb1 {[%emt 00:00:02] [%clk 00:00:09]} f5
{[%emt 00:00:04] [%clk 00:00:25]} 35. Nd2 {[%emt 00:00:02] [%clk 00:00:09]} Bf6
{[%emt 00:00:06] [%clk 00:00:21]} 36. Nb3 {[%emt 00:00:02] [%clk 00:00:08]} Qh2
{[%emt 00:00:05] [%clk 00:00:18]} 37. Rc4 {[%emt 00:00:06] [%clk 00:00:05]} Rd8
{[%emt 00:00:02] [%clk 00:00:18]} 38. Qe2 {[%emt 00:00:03] [%clk 00:00:04]} Qh1+
{[%emt 00:00:05] [%clk 00:00:14]} 39. Rc1 {[%emt 00:00:01] [%clk 00:00:05]} Qe4+
{[%emt 00:00:02] [%clk 00:00:15]} 40. Qc2 {[%clk 00:00:06]} Qxc2+ {[%emt
00:00:06] [%clk 00:00:12]} 41. Rxc2 {[%emt 00:00:02] [%clk 00:00:06]} Rd1+
{[%emt 00:00:08] [%clk 00:00:06]} 42. Rc1 {[%clk 00:00:07]} Rxc1+ {[%emt
00:00:02] [%clk 00:00:05]} 43. Kxc1 {[%clk 00:00:09]} Be7 {[%emt 00:00:01] [%clk
00:00:04]} 44. Nd4 {[%emt 00:00:03] [%clk 00:00:10]} Kg7 {[%emt 00:00:02] [%clk
00:00:04]} 45. Nxe6+ {[%emt 00:00:01] [%clk 00:00:10]} Kf6 {[%emt 00:00:01]
[%clk 00:00:06]} 46. Nf4 {[%clk 00:00:12]} Ke5 {[%emt 00:00:02] [%clk 00:00:06]}
47. Ng6+ {[%clk 00:00:13]} Kf6 {[%emt 00:00:01] [%clk 00:00:08]} 48. Nf4 {[%clk
00:00:14]} Kf7 {[%emt 00:00:02] [%clk 00:00:09]} 49. Kd2 {[%emt 00:00:01] [%clk
00:00:14]} Bd6 {[%clk 00:00:10]} 50. Nd3 {[%emt 00:00:01] [%clk 00:00:15]} Ke6
{[%emt 00:00:02] [%clk 00:00:10]} 51. Ke2 {[%emt 00:00:09] [%clk 00:00:08]} Kd5
{[%clk 00:00:11]} 52. Ne1 {[%emt 00:00:02] [%clk 00:00:08]} Ke4 {[%emt 00:00:02]
[%clk 00:00:11]} 53. f3+ {[%emt 00:00:02] [%clk 00:00:08]} Kd5 {[%emt 00:00:01]
[%clk 00:00:12]} 54. Kd3 {[%clk 00:00:09]} h5 {[%emt 00:00:02] [%clk 00:00:12]}
55. Ng2 {[%emt 00:00:02] [%clk 00:00:09]} Bg3 {[%emt 00:00:01] [%clk 00:00:13]}
56. e4+ {[%emt 00:00:04] [%clk 00:00:08]} Ke5 {[%emt 00:00:04] [%clk 00:00:10]}
57. exf5 {[%emt 00:00:03] [%clk 00:00:07]} h4 {[%emt 00:00:02] [%clk 00:00:10]}
58. Ne3 {[%emt 00:00:06] [%clk 00:00:03]} h3 {[%emt 00:00:03] [%clk 00:00:10]}
59. Kc4 {[%emt 00:00:01] [%clk 00:00:04]} Be1 {[%emt 00:00:04] [%clk 00:00:07]}
60. Ng4+ {[%emt 00:00:02] [%clk 00:00:04]} Kxf5 {[%emt 00:00:02] [%clk
00:00:08]} 61. Kb3 {[%emt 00:00:02] [%clk 00:00:04]} Kf4 {[%emt 00:00:01] [%clk
00:00:09]} 62. Kc2 {[%emt 00:00:02] [%clk 00:00:04]} Kxf3 {[%emt 00:00:02] [%clk
00:00:09]} 63. Nh2+ {[%emt 00:00:01] [%clk 00:00:04]} Kg3 {[%emt 00:00:01] [%clk
00:00:10]} 64. Nf1+ {[%clk 00:00:05]} Kf2 {[%emt 00:00:01] [%clk 00:00:11]} 65.
Nh2 {[%emt 00:00:01] [%clk 00:00:07]} Bc3 {[%emt 00:00:01] [%clk 00:00:12]} 66.
a4 {[%clk 00:00:08]} Kg3 {[%emt 00:00:02] [%clk 00:00:12]} 67. Nf1+ {[%emt
00:00:01] [%clk 00:00:09]} Kg2 {[%emt 00:00:02] [%clk 00:00:12]} 68. Ne3 {[%clk
00:00:10]} Kf3 {[%clk 00:00:13]} 69. Nf1 {[%clk 00:00:12]} Bd4 {[%emt 00:00:02]
[%clk 00:00:13]} 70. a5 {[%emt 00:00:01] [%clk 00:00:12]} Kg2 {[%clk 00:00:14]}
71. Kd3 {[%emt 00:00:05] [%clk 00:00:10]} Ba7 {[%emt 00:00:03] [%clk 00:00:13]}
72. Nd2 {[%clk 00:00:10]} h2 {[%emt 00:00:01] [%clk 00:00:14]} 0-1

[Site "Europe Echecs"]

[Event "Championnat d'Europe de Blitz"]
[Date "2024.12.09"]
[White "Nevednichy, Vladislav"]
[Black "Paichadze, Luka"]
[WhiteElo "2451"]
[BlackElo "2532"]
[Round "11.21"]
[Result "0-1"]
[TimeControl "180+2"]

1. e4 {[%emt 00:00:02] [%clk 00:03:02]} c6 {[%clk 00:03:03]} 2. d3 {[%emt
00:00:09] [%clk 00:02:55]} d5 {[%emt 00:00:02] [%clk 00:03:03]} 3. Nd2 {[%clk
00:02:56]} e5 {[%emt 00:00:04] [%clk 00:03:02]} 4. Ngf3 {[%clk 00:02:58]} Bd6
{[%emt 00:00:02] [%clk 00:03:01]} 5. d4 {[%emt 00:00:06] [%clk 00:02:54]} exd4
{[%emt 00:00:02] [%clk 00:03:02]} 6. Bd3 {[%emt 00:00:01] [%clk 00:02:54]} Bg4
{[%emt 00:00:22] [%clk 00:02:42]} 7. exd5 {[%emt 00:00:21] [%clk 00:02:35]} Qe7+
{[%emt 00:00:22] [%clk 00:02:22]} 8. Be2 {[%emt 00:00:08] [%clk 00:02:29]} d3
{[%emt 00:00:12] [%clk 00:02:13]} 9. cxd3 {[%emt 00:00:01] [%clk 00:02:29]} cxd5
{[%clk 00:02:14]} 10. O-O {[%emt 00:00:02]} Nf6 {[%clk 00:02:15]} 11. h3 {[%emt
00:00:08] [%clk 00:02:24]} Bh5 {[%emt 00:00:02] [%clk 00:02:14]} 12. Re1 {[%emt
00:00:06] [%clk 00:02:20]} O-O {[%emt 00:00:03] [%clk 00:02:14]} 13. Nb3 {[%emt
00:00:33] [%clk 00:01:48]} h6 {[%emt 00:00:05] [%clk 00:02:11]} 14. Nfd4 {[%emt
00:00:06] [%clk 00:01:45]} Bxe2 {[%emt 00:00:09] [%clk 00:02:04]} 15. Rxe2
{[%clk 00:01:45]} Qd7 {[%emt 00:00:02] [%clk 00:02:04]} 16. Re3 {[%emt 00:00:11]
[%clk 00:01:36]} Nc6 {[%emt 00:00:04] [%clk 00:02:02]} 17. Rf3 {[%clk 00:01:37]}
Ne5 {[%emt 00:00:27] [%clk 00:01:38]} 18. Rxf6 {[%emt 00:00:01] [%clk 00:01:37]}
gxf6 {[%clk 00:01:39]} 19. Bxh6 {[%emt 00:00:02] [%clk 00:01:37]} Rfe8 {[%clk
00:01:41]} 20. Be3 {[%emt 00:00:29] [%clk 00:01:10]} Ng6 {[%emt 00:00:43] [%clk
00:01:00]} 21. Qf3 {[%emt 00:00:03] [%clk 00:01:10]} Re5 {[%emt 00:00:18] [%clk
00:00:44]} 22. Qxf6 {[%emt 00:00:06] [%clk 00:01:05]} Rae8 {[%emt 00:00:02]
[%clk 00:00:44]} 23. Rf1 {[%emt 00:00:14] [%clk 00:00:53]} Bf8 {[%emt 00:00:11]
[%clk 00:00:35]} 24. Qf3 {[%emt 00:00:09] [%clk 00:00:45]} b6 {[%emt 00:00:05]
[%clk 00:00:33]} 25. Bf4 {[%emt 00:00:08] [%clk 00:00:40]} Re1 {[%emt 00:00:03]
[%clk 00:00:32]} 26. Be3 {[%emt 00:00:05] [%clk 00:00:36]} Rxf1+ {[%emt
00:00:02] [%clk 00:00:32]} 27. Kxf1 {[%clk 00:00:37]} Bg7 {[%emt 00:00:12] [%clk
00:00:23]} 28. Nf5 {[%emt 00:00:09] [%clk 00:00:30]} Bxb2 {[%emt 00:00:02] [%clk
00:00:23]} 29. d4 {[%emt 00:00:06] [%clk 00:00:25]} Ba3 {[%emt 00:00:03] [%clk
00:00:23]} 30. h4 {[%emt 00:00:04] [%clk 00:00:23]} Bf8 {[%emt 00:00:17] [%clk
00:00:07]} 31. h5 {[%clk 00:00:24]} Ne7 {[%clk 00:00:09]} 32. Qg3+ {[%emt
00:00:16] [%clk 00:00:10]} Kh7 {[%emt 00:00:02] [%clk 00:00:09]} 33. Nd6 {[%clk
00:00:11]} Nf5 {[%emt 00:00:05] [%clk 00:00:06]} 34. Nxf5 {[%emt 00:00:03] [%clk
00:00:09]} Qxf5 {[%emt 00:00:01] [%clk 00:00:07]} 35. Nd2 {[%emt 00:00:03] [%clk
00:00:08]} Bh6 {[%emt 00:00:03] [%clk 00:00:06]} 36. Kg1 {[%emt 00:00:06] [%clk
00:00:04]} Bxe3 {[%emt 00:00:02] [%clk 00:00:06]} 37. fxe3 {[%emt 00:00:01]
[%clk 00:00:06]} Qd3 {[%emt 00:00:02] [%clk 00:00:06]} 38. Nf1 {[%clk 00:00:07]}
Rg8 {[%emt 00:00:03] [%clk 00:00:06]} 39. Qf4 {[%clk 00:00:08]} f5 {[%emt
00:00:02] [%clk 00:00:06]} 40. h6 {[%emt 00:00:03] [%clk 00:00:07]} Qe4 {[%clk
00:00:07]} 41. Qc7+ {[%emt 00:00:01] [%clk 00:00:08]} Kxh6 {[%clk 00:00:08]} 42.
Qd6+ {[%clk 00:00:09]} Rg6 {[%emt 00:00:01] [%clk 00:00:09]} 43. Qh2+ {[%emt
00:00:01] [%clk 00:00:09]} Kg7 {[%emt 00:00:01] [%clk 00:00:10]} 44. Qc7+ {[%clk
00:00:10]} Kf8 {[%emt 00:00:02] [%clk 00:00:10]} 45. Qd8+ {[%emt 00:00:03] [%clk
00:00:09]} Kf7 {[%emt 00:00:01] [%clk 00:00:12]} 46. Qd7+ {[%emt 00:00:01] [%clk
00:00:10]} Kg8 {[%clk 00:00:13]} 47. Qd8+ {[%emt 00:00:03] [%clk 00:00:09]} Kg7
{[%emt 00:00:02] [%clk 00:00:13]} 48. Qd7+ {[%emt 00:00:01] [%clk 00:00:09]} Kh6
{[%emt 00:00:01] [%clk 00:00:14]} 49. g3 {[%emt 00:00:02] [%clk 00:00:09]} Qe6
{[%emt 00:00:08] [%clk 00:00:09]} 50. Qd8 {[%emt 00:00:02] [%clk 00:00:08]} Qf6
{[%emt 00:00:02] [%clk 00:00:09]} 51. Qc8 {[%emt 00:00:04] [%clk 00:00:06]} f4
{[%emt 00:00:01] [%clk 00:00:10]} 52. Qh3+ {[%emt 00:00:03] [%clk 00:00:05]} Kg7
{[%clk 00:00:11]} 53. Qd7+ {[%clk 00:00:06]} Qf7 {[%emt 00:00:01] [%clk
00:00:12]} 54. Qxf7+ {[%emt 00:00:02] [%clk 00:00:06]} Kxf7 {[%emt 00:00:01]
[%clk 00:00:14]} 55. exf4 {[%clk 00:00:07]} Rc6 {[%emt 00:00:02] [%clk
00:00:14]} 56. Ne3 {[%emt 00:00:02]} Rc1+ {[%clk 00:00:14]} 57. Kf2 {[%emt
00:00:01] [%clk 00:00:08]} Ra1 {[%clk 00:00:16]} 58. Nxd5 {[%emt 00:00:02] [%clk
00:00:09]} Rxa2+ {[%emt 00:00:01] [%clk 00:00:17]} 59. Kf3 {[%clk 00:00:10]} b5
{[%clk 00:00:18]} 60. g4 {[%emt 00:00:02] [%clk 00:00:10]} a5 {[%emt 00:00:01]
[%clk 00:00:19]} 61. Ke3 {[%emt 00:00:02] [%clk 00:00:10]} b4 {[%emt 00:00:01]
[%clk 00:00:19]} 62. Kd3 {[%clk 00:00:11]} Rg2 {[%emt 00:00:03] [%clk 00:00:18]}
63. g5 {[%emt 00:00:01] [%clk 00:00:12]} b3 {[%emt 00:00:01] [%clk 00:00:19]}
64. Nc3 {[%emt 00:00:04] [%clk 00:00:10]} b2 {[%emt 00:00:02] [%clk 00:00:20]}
65. Nb1 {[%clk 00:00:11]} Ke6 {[%emt 00:00:07] [%clk 00:00:14]} 66. Kc3 {[%emt
00:00:02] [%clk 00:00:12]} Kd5 {[%emt 00:00:02] [%clk 00:00:14]} 67. g6 {[%emt
00:00:05] [%clk 00:00:09]} Rxg6 {[%emt 00:00:01] [%clk 00:00:15]} 68. Kxb2
{[%emt 00:00:02] [%clk 00:00:09]} Rb6+ {[%clk 00:00:16]} 69. Ka2 {[%emt
00:00:01] [%clk 00:00:10]} Kxd4 {[%emt 00:00:01] [%clk 00:00:16]} 70. Nd2 {[%emt
00:00:02] [%clk 00:00:10]} Kc3 {[%emt 00:00:02] [%clk 00:00:17]} 71. Ne4+ {[%emt
00:00:02] [%clk 00:00:11]} Kb4 {[%emt 00:00:01] [%clk 00:00:17]} 72. f5 {[%clk
00:00:11]} Rb5 {[%emt 00:00:08] [%clk 00:00:11]} 73. f6 {[%emt 00:00:04] [%clk
00:00:09]} Rf5 {[%clk 00:00:12]} 74. Kb2 {[%emt 00:00:04] [%clk 00:00:08]} a4
{[%emt 00:00:02] [%clk 00:00:12]} 75. Ka2 {[%emt 00:00:04] [%clk 00:00:05]} Rf4
{[%clk 00:00:13]} 76. Nd6 {[%emt 00:00:06] [%clk 00:00:00]} 0-1

[Site "Europe Echecs"]